Cogmind - Beta 16.1 @@@ ROGUE MODE // 2026.03.01 @ 16:38:34 Player: Krysmphoenix Result: Destroyed by as-74009 with Assembled F-torch Performance ------------- Evolutions (0) 0 Regions Visited (2) 400 Robots Destroyed (17) 85 Value Destroyed (437) 437 Prototype IDs (0) 0 Alien Tech Used (0) 0 Bonus (0) 0 TOTAL SCORE: 922 Bonus ------- None Cogmind --------- Core Integrity 0/250 Matter 300/300 Energy 347/375 System Corruption 0% Temperature Hot (250) Movement Rolling (85) Location -10/Mines Parts ------- > --- POWER (1) -------- Light Ion Engine > --- PROPULSION (2) --- Wheel Armored Wheel > --- UTILITY (2) ------ High-capacity Battery Signal Interpreter > --- WEAPON (2) ------- Spread Laser Spread Laser > --- INVENTORY (5) ---- Improved Heat Sink Seismic Detector Light Cannon Datajack Peak State ------------ > --- POWER ------------ Ion Engine > --- PROPULSION ------- Armored Wheel Armored Wheel > --- UTILITY ---------- Signal Interpreter Shield Generator > --- WEAPON ----------- Spread Laser Spread Laser > --- INVENTORY -------- Armored Wheel Improved Heat Sink Shield Generator Spread Laser Datajack [Rating: 13] Favorites ----------- Power Ion Engine Engine Ion Engine Propulsion Armored Wheel Wheel Armored Wheel Utility Signal Interpreter Device Shield Generator Storage High-capacity Battery Processor Signal Interpreter Weapon Spread Laser Energy Gun Spread Laser Ballistic Gun Light Assault Rifle Special Melee Weapon Datajack Build | -11 -10 -10 ------- Run | Yrd Mat Min Slots Evolved . | . . . Power . | . . . Propulsion . | . . . Utility . | . . . Weapon . | . . . Parts Attached 20 | 6 9 5 Power 2 | 1 . 1 Engine 2 | 1 . 1 Core . | . . . Reactor . | . . . Propulsion 5 | 2 2 1 Treads . | . . . Leg . | . . . Wheel 5 | 2 2 1 Hover . | . . . Flight . | . . . Utility 6 | 1 3 2 Device 4 | 1 2 1 Storage 1 | . . 1 Processor 1 | . 1 . Hackware . | . . . Protection . | . . . Artifact . | . . . Weapon 7 | 2 4 1 Energy Gun 5 | 1 3 1 Energy Cannon . | . . . Ballistic Gun 1 | 1 . . Ballistic Cannon . | . . . Launcher . | . . . Special Weapon . | . . . Impact Weapon . | . . . Slashing Weapon . | . . . Piercing Weapon . | . . . Special Melee Weapon 1 | . 1 . Unidentified Prototypes . | . . . Parts Lost 7 | . 2 5 Power 1 | . . 1 Propulsion 1 | . . 1 Utility 3 | . 1 2 Weapon 2 | . 1 1 Highest Loss Streak 2 | . 1 2 To Critical Strikes . | . . . Average Backups 4 | 2 4 3 Power . | . . . Propulsion . | . . . Utility 1 | . 1 2 Weapon 1 | 1 1 . Tool/Special . | . . . Unused Backups 11 | . 8 3 Power 1 | . 1 . Propulsion 2 | . 2 . Utility 4 | . 2 2 Weapon 4 | . 3 1 Tool/Special . | . . . Average Slot Usage (%) 96 | . 98 92 Engine 13 | . 13 12 Wheel 25 | . 28 21 Device 11 | . 13 7 Storage 2 | . . 6 Processor 13 | . 12 14 Energy Gun 26 | . 26 28 Peak Build Rating 13 | 6 13 12 Average Rating 10 | 4 11 10 On Entrance 6 | . 6 12 Avg Prop Armor Cover (%) 7 | . . 7 Naked Turns . | . . . Heaviest Build 15 | 9 14 15 Greatest Support 24 | 20 24 24 Greatest Overweight (x) 1 | . . 1 Average Overweight (x) . | . . . Largest Inventory Capacity 5 | 5 5 5 Average Capacity 5 | 5 5 5 Most Carried 5 | 5 5 5 Average Carried 4 | 2 4 3 Final Capacity 5 | 5 5 5 Final Carried 5 | 3 5 4 Class Distribution -------------------- 100% | Mutant Dominant Class ---------------- Mutant | -10/Materials Mutant | -10/Mines Resources | -11 -10 -10 ----------- Run | Yrd Mat Min Matter Collected 478 | 260 175 43 Remotely 12 | 12 . . Salvage Created 473 | 82 311 80 Parts 26 | 2 23 1 Haulers Intercepted . | . . . Recyclers Shooed . | . . . Parts Field Recycled . | . . . Retrieved Matter . | . . . Parts Self-Destructed . | . . . Prevented . | . . . Parts Restored . | . . . Kills | -11 -10 -10 ------- Run | Yrd Mat Min Combat Hostiles Destroyed 22 | . 13 9 Guns 22 | . 13 9 Classes Destroyed 4 | 1 2 1 Recycler 2 | 1 1 . Swarmer 6 | . 6 . Grunt 9 | . 7 2 Assembled 7 | . . 7 Best Kill Streak 5 | 1 5 2 Combat Bots Only 4 | . 4 2 Max Kills in Single Turn 1 | 1 1 1 Gunslinging . | . . . Exploded . | . . . Melee . | . . . Uniques/NPCs Destroyed . | . . . Combat | -11 -10 -10 -------- Run | Yrd Mat Min Hostile Shots Fired 114 | . 40 74 Missed 27 | . 8 19 Hits 87 | . 32 55 Melee 6 | . . 6 Projectile 81 | . 32 49 AOE 1 | . . 1 Critical Strikes 3 | . 1 2 Part Disruptions 4 | . . 4 Damage Taken 939 | . 309 630 Core 252 | . 48 204 Absorbed by Shields 301 | . 121 180 Regen/Repaired (Parts) 42 | . 42 . Core Remaining (%) 100 | 100 . . Volleys Fired 68 | 15 23 30 Largest 2 | 1 2 2 Hottest 130 | 50 130 130 Shots Fired 121 | 15 46 60 Gun 121 | 15 46 60 Cannon . | . . . Launcher . | . . . Special . | . . . Kinetic . | . . . Thermal 121 | 15 46 60 Explosive . | . . . Electromagnetic . | . . . Robot Hit Streak 11 | 6 11 9 Robot Miss Streak 11 | 3 7 11 Penetration Max . | . . . Secondary Targets 5 | . 3 2 Max Gunslinging Chain 1 | . 1 1 Shots Hit Robots 102 | 10 47 45 Core Hits 101 | 2 53 46 Critical Kills . | . . . Critical Parts Destroyed . | . . . Critical Strikes 2 | 2 . . Burn 2 | 2 . . Melee Attacks 7 | . 7 . Impact . | . . . Slashing . | . . . Piercing . | . . . Sneak Attacks 4 | . 4 . Combat Hostiles . | . . . Follow-up Attacks . | . . . Damage Inflicted 1152 | 126 545 481 Guns 1069 | 126 465 478 Cannons . | . . . Explosions 80 | . 80 . Melee . | . . . Ramming 3 | . . 3 Kinetic . | . . . Thermal 1069 | 126 465 478 Explosive 80 | . 80 . Electromagnetic . | . . . Impact . | . . . Slashing . | . . . Piercing . | . . . Highest Corruption . | . . . Average Corruption . | . . . Corruption Purged . | . . . Corruption Blocked . | . . . Overload Shots . | . . . Overflow Damage 8 | . 8 . Projectiles . | . . . Explosions 8 | . 8 . Melee . | . . . Knockbacks . | . . . Impact . | . . . Kinetic . | . . . Secondary . | . . . Self-Inflicted Damage 89 | . 88 1 Shots 1 | . 1 . Rammed 1 | . . 1 Targets Rammed 1 | . . 1 Kicked . | . . . Crushed . | . . . Highest Temperature 443 | 100 369 443 Average Temperature 131 | 40 125 154 Received Heat Transfer 319 | . 95 224 Effects 6 | . 4 2 Shutdowns 1 | . . 1 Interference 4 | . 4 . Damage (minor) 1 | . . 1 Siege Activations . | . . . Martial Activations . | . . . Shielding Activations . | . . . Robots Disrupted . | . . . Combat Hostiles . | . . . Robots Corrupted . | . . . Combat Hostiles . | . . . Parts Fried . | . . . Impact Corruptions . | . . . Robots Melted . | . . . Combat Hostiles . | . . . Parts Melted 1 | 1 . . Heat Transferred 1698 | 518 595 585 Parts Sabotaged . | . . . Parts Stolen . | . . . Parts Stripped . | . . . Power Chain Reactions . | . . . Alert | -11 -10 -10 ------- Run | Yrd Mat Min Maximum Alert Level . | . . . Low Security (%) 100 | 100 100 100 Level 1 . | . . . Level 2 . | . . . Level 3 . | . . . Level 4 . | . . . Level 5 . | . . . High Security . | . . . Max Security . | . . . Peak Influence 175 | 5 175 50 Initial . | . . . Average 49 | . 74 6 Influence Increases 478 | 5 408 65 Destroy 0b10 Robot/C 300 | . 260 40 Destroy 0b10 Robot/NC 10 | 5 5 . Destroy Leader 60 | . 50 10 Successful Hack 25 | . 25 . Disable Machine 30 | . 30 . Destroy Structure 38 | . 38 . Lose Combat Pursuer 15 | . . 15 Influence Decreases 478 | 5 407 66 Entered New Map 1 | . . 1 Time Decay 452 | 5 387 60 Lost Part 25 | . 20 5 Squads Dispatched 1 | . 1 . Investigation . | . . . Extermination . | . . . Reinforcement 1 | . 1 . Assault . | . . . Garrison . | . . . Intercept . | . . . Searches Triggered . | . . . Construction Impeded . | . . . Haulers Reinforced . | . . . Active Scanning Responses . | . . . Cargo Convoy Interrupts . | . . . Stealth | -11 -10 -10 --------- Run | Yrd Mat Min Distress Signals 2 | . 1 1 Communications Jammed . | . . . Distress Signals . | . . . Times Spotted 60 | . 23 37 Peak Tracking Total 23 | . 4 23 Tactical Retreats 4 | . . 4 Traps | -11 -10 -10 ------- Run | Yrd Mat Min Traps Triggered . | . . . Indirectly . | . . . Trap Hack Attempts . | . . . Triggered . | . . . Disarmed . | . . . Reprogrammed . | . . . Reused . | . . . Traps Extracted . | . . . Installed . | . . . Triggered . | . . . Machines | -11 -10 -10 ---------- Run | Yrd Mat Min Machines Disabled 2 | . 2 . Max in Single Turn 2 | . 2 . Machines Repaired . | . . . Machines Dismantled . | . . . Machines Sabotaged . | . . . Overloaded Fab Kills . | . . . Hacking | -11 -10 -10 --------- Run | Yrd Mat Min Machines Accessed 7 | . 7 . Terminals 6 | . 6 . Fabricators . | . . . Repair Stations 1 | . 1 . Recycling Units . | . . . Scanalyzers . | . . . Garrison Access . | . . . Total Hacks 29 | . 29 . Successful 19 | . 19 . Failed 10 | . 10 . Catastrophic 1 | . 1 . Database Lockouts . | . . . Manual 14 | . 14 . Terminals 23 | . 23 . Fabricators . | . . . Repair Stations 6 | . 6 . Recycling Units . | . . . Scanalyzers . | . . . Garrison Access . | . . . Terminal Hacks 6 | . 6 . Record 5 | . 5 . Zone Layout 1 | . 1 . Fabricator Hacks . | . . . Repair Station Hacks 4 | . 4 . Scan Component 2 | . 2 . Repair 2 | . 2 . Recycling Unit Hacks . | . . . Scanalyzer . | . . . Garrison Access Hacks . | . . . Unauthorized Hacks 9 | . 9 . Terminals 9 | . 9 . Assimilate 4 | . 4 . Botnet 5 | . 5 . Fabricators . | . . . Repair Stations . | . . . Recycling Units . | . . . Scanalyzers . | . . . Garrison Access . | . . . Data Cores Recovered . | . . . Used . | . . . Hacking Detections 7 | . 7 . Full Trace Events . | . . . Feedback Events . | . . . Feedback Blocked . | . . . Robot Schematics Acquired . | . . . Robots Built . | . . . Authchips . | . . . Time . | . . . Total Robot Build Rating . | . . . Part Schematics Acquired . | . . . Parts Built . | . . . Authchips . | . . . Time . | . . . Total Part Build Rating . | . . . Part Studies Acquired . | . . . Parts Repaired 2 | . 2 . Time 64 | . 64 . Parts Recycled . | . . . Recycled Matter . | . . . Retrieved Matter . | . . . Retrieved Components . | . . . Parts Scanalyzed . | . . . Part Schematics Acquired . | . . . Parts Damaged . | . . . Bothacking | -11 -10 -10 ------------ Run | Yrd Mat Min Used RIF Installer . | . . . Robots Hacked 3 | . 3 . Non-combat 3 | . 3 . Combat . | . . . Robot Hacks Applied 5 | . 5 . parse_system 2 | . 2 . no_distress 3 | . 3 . Relay Couplers Released . | . . . Fabnet Peak Effective % . | . . . Robots Rewired . | . . . Allies Hacked . | . . . Hacks Repelled . | . . . Allies | -11 -10 -10 -------- Run | Yrd Mat Min Total Allies . | . . . Largest Group . | . . . Highest-Rated Group . | . . . Highest-Rated Ally . | . . . Total Orders . | . . . Ally Attacks . | . . . Total Damage . | . . . Kills . | . . . Allies Corrupted . | . . . Allies Melted . | . . . Intel | -11 -10 -10 ------- Run | Yrd Mat Min Active Infowar (turns) . | . . . Robot Analysis Total . | . . . Derelict Logs Recovered 1 | . . 1 Drone Launches . | . . . Drone Recoveries . | . . . Exploration | -11 -10 -10 ------------- Run | Yrd Mat Min Turns Passed 1678 | 92 1066 520 Spaces Moved 1290 | 65 848 377 Core 15 | 15 . . Treads . | . . . Legs . | . . . Wheels 1275 | 50 848 377 Hover . | . . . Flight . | . . . Fastest Speed 50 | 50 80 85 Average Speed 89 | 73 88 93 Slowest Speed 105 | 80 90 105 Overloaded Moves . | . . . Propulsion Burnouts . | . . . Robots Hopped . | . . . Potential Cave-ins . | . . . Cave-ins Triggered . | . . . Exploration Rate (%) 61 | 4 95 84 Regions Visited 2 Branch Regions 1 Pre-discovered Areas . | . . . Known Exits Taken 1 | . 1 . Unknown Exits Taken 1 | 1 . . Scrap Searched 2 | . . 2 Spaces Dug . | . . . Terrain Destroyed 38 | . 38 . Melee . | . . . Projectile . | . . . AOE 38 | . 38 . Terrain Rammed . | . . . Walls Destroyed . | . . . Machines Disabled . | . . . Actions | -11 -10 -10 --------- Run | Yrd Mat Min Total 1695 | 94 1117 484 Wait 251 | . 185 66 Move 1288 | 64 847 377 Hop . | . . . Pick Up 35 | 9 22 4 Fast Attach . | . . . Attach 17 | 6 6 5 Detach . | . . . Swap 13 | . 12 1 Drop 15 | . 15 . Fire 68 | 15 23 30 Melee 7 | . 7 . Ram 1 | . . 1 Kick . | . . . Crush . | . . . Escape Stasis . | . . . Rewire . | . . . Trap . | . . . Miscellaneous . | . . . Route ------- -11/Scrapyard -10/Materials (discovered 6 exits: *Mat x3 / *Min x2 / *Sub) -10/Mines History --------- Turn | Location | Event 27 | -11/Scrapyard | Discovered new exit (range 15) 93 | -11/Scrapyard | Entered Materials 211 | -10/Materials | Discovered new exit (range 15) 300 | -10/Materials | Discovered new exit (range 10) 310 | -10/Materials | Build established: Mutant 330 | -10/Materials | Discovered new exit (range 14) 575 | -10/Materials | Repaired Imp. Heat Sink 602 | -10/Materials | Repaired Ion Engine 705 | -10/Materials | Identified exit to Mines 874 | -10/Materials | Discovered new exit (range 8) 879 | -10/Materials | Identified exit to Subcaves 1026 | -10/Materials | Discovered new exit (range 11) 1034 | -10/Materials | Identified exit to Materials 1098 | -10/Materials | Discovered exit to Materials (range 13) 1159 | -10/Materials | Entered Mines 1197 | -10/Mines | Assembled infested the area 1326 | -10/Mines | Core integrity fell below 50% 1468 | -10/Mines | Learned Materials trap positions 1565 | -10/Mines | Core integrity fell below 20% 1679 | -10/Mines | Destroyed by as-74009 with Assembled F-torch Last Messages --------------- 01415_ Acquired 5 matter. 01468_ Acquired derelict log, extracted data. Data stored: Materials trap records. 01537_ Ion Engine destroyed. 01541_ as-42951 destroyed. 01559_ Acquired 5 matter. 01567_ as-31657 destroyed. 01578_ Acquired Lgt. Ion Engine. 01581_ Acquired Seismic Detector. 01582_ Acquired 10 matter. 01584_ Acquired Wheel. 01599_ Acquired 10 matter. 01605_ Searching scrap... 01605_ Found Lgt. Cannon. 01605_ Found 34 Matter. 01606_ Acquired Lgt. Cannon. 01650_ R-06 Scavenger destroyed. 01657_ as-57994 destroyed. 01678_ as-67740 destroyed. 01678_ Switching to secondary target: as-74009. Map ----- +----------------------------------------------------+ | ??????????????????????#####?????????????????????? | | ???????????????######## ###???????????????????? | | ??????????????## ##??????????????????? | | ?????????????## #??????????????????? | | ????????????## #??????????????????? | | ???????????## ##??????????????????? | | ???????????# ## #### #???????????????????? | | ???????????# #####??## ##???????????????????? | | ???????????# #???????#####????????????????????? | | ???????????# ##???????????????????????????????? | | ???????????# #???????????????????????????????? | | ???????????## #???????????????????????????????? | | ????????????## #???????????????????????????????? | | ?????????????# #??####?????????????????????????? | | ?????????????# #?## ##????????????????????????? | | ?????????????# ### #????????????????????????? | | ?????????????# ## #????????????????????????? | | ????????????##% # #????????????????????????? | | ????????????#!%! ##???????????????????????? | | ????????????#== ###?????????????????????? | | ????????????## ##????????????????????? | | ????????????## #????????????????????? | | ???????????## = ##???????????????????? | | ??????????## = ! ##??????????????????? | | ?????????## ! #??????###########?? | | ?????????# aa @ #?????## # #?? | | ????????## """ ## ##????## #?? | | ????????# """ ##??######## ## ### | | ???????## """%##????# ### | | ???????# #?????# ###### ###?# ### | | ???????# % #?????# #????#####???# #?? | | ???????## ## ######## #????????????# #?? | | ????????# #?### ##?# #????????????# #?? | | ????????## #????# ###??# ######???????????## #?? | | ?????????##?????# #????# #???????????????## #?? | | ????????????????#!###### #???????????????# ##? | | ??????????????###%## % #???????????????# ## | | ??????????????# |## #####???????????????# # | | ??????????????# #???????????????????## | | ??????????????#% #####????????????????????### | | ?????????????## ##????????????????????????#### | | ????????????## #???????????????????????????## | | ???????###### #????????????????????????????# | | ???????# ##????????????????????????????? | | ??????# ##?????????????????????????????? | | ?????# ##|%! ##??????#???????????????????????? | | ????# ??#!%###??????%????????????????????????? | | ???# ???#!%#???????%#????????????????????????? | | ??? ????#=!#????###!?????????????????????????? | | ???? ?????#=*#???# !%??????????????????????????? | +----------------------------------------------------+ Best States ------------- Heat Dissipation 25 Energy Generation 10 Energy Capacity 500 Matter Stores 300 Matter Capacity 300 Sight Range 16 Terrain Scan Density 10 Evasion (%) 50 Item Schematics ----------------- None Robot Schematics ------------------ None Fabricated ------------ Nothing Repaired ---------- Imp. Heat Sink | 72% | -10/Materials Ion Engine | 48% | -10/Materials Studied --------- None Alien Tech Used ----------------- None Achievements -------------- None Challenges ------------ None Game ------ Seed StormDecoyCrosscalibrator Manual? 0 Play Time 00:22:18 Cumulative 13.4 hours Start 2026.03.01 @ 16:10:03 End 2026.03.01 @ 16:38:34 Sessions 1 Manual Loads 0 Difficulty Rogue Special Mode None Game No. 24 Rogue 21 Adventurer 3 Explorer 0 Win Type - Total 1 Types 1/0/0/0/0/0/0/0/0/0 Lore% 11 Gallery% 16 Achievement% 18 Wizard Run 0 Options --------- Layout 1 ASCII 0 Keyboard 0 Movement Numpad Keybinds 0 Fullscreen 2 Font 24/Proggy Map View 50x35 Zoom Use 0% Tactical HUD 1 Map Filters NONE Filters NONE Steam 1 RUN: c7ddc221-eb83-44e1-b1c0-aa25c29c0c47